[Event "34rd NATO Championship 2024"]
[Site "Rhodes"]
[Date "2024.10.24"]
[Round "5.14"]
[White "Nilsson, Erik"]
[Black "Helbig, Mark"]
[Result "1/2-1/2"]
[ECO "A57"]
[WhiteElo "2028"]
[BlackElo "2280"]
[Annotator "RC"]
[PlyCount "61"]
[EventDate "2024.09.18"]
[EventType "swiss"]
[EventCountry "GRE"]
[SourceTitle "playchess.com"]
[Source "ChessBase"]
[SourceQuality "1"]
[TimeControl "5400+30"]

1. d4 {[%emt 0:00:02]} Nf6 {[%emt 0:00:59]} 2. c4 {[%emt 0:00:07]} c5 {[%emt 0:00:08]} 3. d5 {[%emt 0:00:48]} b5 {[%emt 0:00:11]} 4. cxb5 {[%emt 0:03:42]} a6 {[%emt 0:00:08]} 5. b6 {[%emt 0:01:07]} Qxb6 {[%emt 0:00:07]} 6. Nc3 {[%emt 0:00:06]} g6 {[%emt 0:02:09]} 7. e4 {[%emt 0:00:38]} d6 {[%emt 0:00:07]} 8. Be2 {[%emt 0:00:17]} Bg7 {[%emt 0:01:17]} 9. Nf3 {[%emt 0:00:09]} O-O {[%emt 0:00:52]} 10. Nd2 {[%emt 0:00:17]} Nbd7 {[%emt 0:00:59]} 11. Nc4 {[%emt 0:01:34]} Qd8 {[%emt 0:03:36]} 12. O-O {[%emt 0:01:15]} Nb6 {[%emt 0:02:23]} 13. Bf4 {[%emt 0:03:05]} Nxc4 {[%emt 0:06:03]} 14. Bxc4 {[%emt 0:00:08]} Nd7 {[%emt 0:00:16]} 15. Qd2 {[%emt 0:00:41]} Rb8 {[%emt 0:02:08]} 16. Rab1 {[%emt 0:00:33]} Rb4 {[%emt 0:03:53]} 17. Bd3 {[%emt 0:05:42]} Ne5 {[%emt 0:02:21]} 18. Bc2 {[%emt 0:06:23]} a5 {[%emt 0:10:11]} 19. b3 {[%emt 0:03:16]} Ba6 {[%emt 0:01:14]} 20. Rfd1 {[%emt 0:01:25]} f5 {[%emt 0:07:19]} 21. exf5 {[%emt 0:03:34]} Rd4 {[%emt 0:09:13]} 22. Qc1 {[%emt 0:00:09]} Nd3 {[%emt 0:03:19]} 23. Bxd3 {[%emt 0:02:34]} Rxd3 {[%emt 0:02:55]} 24. Rxd3 {[%emt 0:02:59]} Bxd3 {[%emt 0:04:59]} 25. Rb2 {[%emt 0:00:07]} Rxf5 {[%emt 0:01:30]} 26. Be3 {[%emt 0:00:22]} Ba6 {[%emt 0:02:22]} 27. Rd2 {[%emt 0:00:57]} Bb7 {[%emt 0:00:48]} 28. h3 {[%emt 0:00:37]} Qa8 {[%emt 0:02:09]} 29. Qc2 {[%emt 0:01:08]} Bxd5 {[%emt 0:04:12]} 30. Nxd5 {[%emt 0:00:28]} Rxd5 {[%emt 0:00:06]} 31. Qe4 {[%emt 0:00:37]} 1/2-1/2

[Event "34rd NATO Championship 2024"]
[Site "Rhodes"]
[Date "2024.10.24"]
[Round "5.15"]
[White "Duren, Andrew"]
[Black "Jauk, Wilhelm"]
[Result "1/2-1/2"]
[ECO "A80"]
[WhiteElo "2015"]
[BlackElo "2143"]
[Annotator "RC"]
[PlyCount "34"]
[EventDate "2024.09.18"]
[EventType "swiss"]
[EventCountry "GRE"]
[SourceTitle "playchess.com"]
[Source "ChessBase"]
[SourceQuality "1"]
[TimeControl "5400+30"]

1. d4 {[%emt 0:01:57]} f5 {[%emt 0:00:15]} 2. Bf4 {[%emt 0:00:13]} Nf6 {[%emt 0:00:26]} 3. e3 {[%emt 0:00:16]} g6 {[%emt 0:01:54]} 4. h4 {[%emt 0:01:27]} h6 {[%emt 0:16:35]} 5. Bd3 {[%emt 0:04:56]} d6 {[%emt 0:01:26]} 6. c4 {[%emt 0:04:25]} Bg7 {[%emt 0:01:19]} 7. Nc3 {[%emt 0:05:05]} O-O {[%emt 0:01:50]} 8. Nf3 {[%emt 0:15:21]} e6 {[%emt 0:07:41]} 9. Qd2 {[%emt 0:02:44]} Nc6 {[%emt 0:19:47]} 10. e4 {[%emt 0:07:37]} Ng4 {[%emt 0:01:26]} 11. exf5 {[%emt 0:10:43]} exf5 {[%emt 0:10:42]} 12. Ne2 {[%emt 0:08:00]} Qf6 {[%emt 0:03:25]} 13. O-O {[%emt 0:02:17]} Bd7 {[%emt 0:02:21]} 14. b4 {[%emt 0:06:29]} Nd8 {[%emt 0:06:54]} 15. Rae1 {[%emt 0:09:11]} Nf7 {[%emt 0:03:06]} 16. Nc3 {[%emt 0:03:24]} c6 {[%emt 0:03:02]} 17. c5 {[%emt 0:01:53]} a5 {[%emt 0:05:16]} 1/2-1/2

[Event "34rd NATO Championship 2024"]
[Site "Rhodes"]
[Date "2024.10.24"]
[Round "5.16"]
[White "Casteleijn, Diederick"]
[Black "Michalski, Daniel"]
[Result "1/2-1/2"]
[ECO "C58"]
[WhiteElo "2128"]
[BlackElo "2011"]
[Annotator "RC"]
[PlyCount "78"]
[EventDate "2024.09.18"]
[EventType "swiss"]
[EventCountry "GRE"]
[SourceTitle "playchess.com"]
[Source "ChessBase"]
[SourceQuality "1"]
[TimeControl "5400+30"]

1. e4 {[%emt 0:00:14]} e5 {[%emt 0:00:22]} 2. Nf3 {[%emt 0:00:17]} Nc6 {[%emt 0:00:15]} 3. Bc4 {[%emt 0:00:21]} Nf6 {[%emt 0:00:19]} 4. Ng5 {[%emt 0:01:25]} d5 {[%emt 0:00:22]} 5. exd5 {[%emt 0:00:14]} Na5 {[%emt 0:00:08]} 6. Bb5+ {[%emt 0:00:15]} c6 {[%emt 0:00:07]} 7. dxc6 {[%emt 0:00:14]} bxc6 {[%emt 0:00:05]} 8. Qf3 {[%emt 0:00:20]} Bd7 {[%emt 0:05:13]} 9. Bd3 {[%emt 0:00:34]} h6 {[%emt 0:09:43]} 10. Ne4 {[%emt 0:01:17]} Nd5 {[%emt 0:04:59]} 11. Ng3 {[%emt 0:03:36]} g6 {[%emt 0:06:57]} 12. O-O {[%emt 0:08:29]} Bg7 {[%emt 0:03:03]} 13. Nc3 {[%emt 0:03:33]} Nf4 {[%emt 0:07:11]} 14. b4 {[%emt 0:03:16]} Nb7 {[%emt 0:09:47]} 15. b5 {[%emt 0:04:47]} Qc7 {[%emt 0:04:44]} 16. Be4 {[%emt 0:15:19]} Nd6 {[%emt 0:07:46]} 17. bxc6 {[%emt 0:08:48]} Be6 {[%emt 0:00:18]} 18. a4 {[%emt 0:06:48]} f5 {[%emt 0:07:48]} 19. Bd5 {[%emt 0:04:27]} Nxd5 {[%emt 0:00:54]} 20. Nxd5 {[%emt 0:00:06]} Qf7 {[%emt 0:00:33]} 21. Nc3 {[%emt 0:03:41]} e4 {[%emt 0:02:05]} 22. Qe3 {[%emt 0:06:09]} O-O {[%emt 0:09:05]} 23. Qc5 {[%emt 0:04:51]} Rfd8 {[%emt 0:03:58]} 24. Rb1 {[%emt 0:06:13]} Rac8 {[%emt 0:08:58]} 25. Nb5 {[%emt 0:02:13]} Nc4 {[%emt 0:03:03]} 26. c7 {[%emt 0:02:03]} Rd7 {[%emt 0:02:39]} 27. Qxa7 {[%emt 0:00:25]} Be5 {[%emt 0:01:49]} 28. Qb7 {[%emt 0:01:12]} Rcxc7 {[%emt 0:00:40]} 29. Nxc7 {[%emt 0:00:17]} Bxc7 {[%emt 0:00:49]} 30. d3 {[%emt 0:04:56]} Kh7 {[%emt 0:00:47]} 31. dxc4 {[%emt 0:03:21]} Bxg3 {[%emt 0:00:17]} 32. Qa8 {[%emt 0:00:05]} Ra7 {[%emt 0:00:59]} 33. Qd8 {[%emt 0:02:51]} Rd7 {[%emt 0:00:23]} 34. Qa5 {[%emt 0:00:13]} Bc7 {[%emt 0:00:52]} 35. Qc3 {[%emt 0:00:06]} Bxc4 {[%emt 0:00:08]} 36. Bb2 {[%emt 0:00:24]} g5 {[%emt 0:00:22]} 37. Rfd1 {[%emt 0:00:35]} Bxh2+ {[%emt 0:00:52]} 38. Kh1 {[%emt 0:00:34]} Rxd1+ {[%emt 0:00:25]} 39. Rxd1 {[%emt 0:00:01]} Be5 {[%emt 0:00:11]} 1/2-1/2

[Event "34rd NATO Championship 2024"]
[Site "Rhodes"]
[Date "2024.10.24"]
[Round "5.17"]
[White "Sauer, Marko"]
[Black "Verlaine, Alexandre"]
[Result "1-0"]
[ECO "B33"]
[WhiteElo "2086"]
[BlackElo "1962"]
[Annotator "RC"]
[PlyCount "57"]
[EventDate "2024.09.18"]
[EventType "swiss"]
[EventCountry "GRE"]
[SourceTitle "playchess.com"]
[Source "ChessBase"]
[SourceQuality "1"]
[TimeControl "5400+30"]

1. e4 {[%emt 0:00:12]} c5 {[%emt 0:00:09]} 2. Nf3 {[%emt 0:00:18]} Nc6 {[%emt 0:00:08]} 3. d4 {[%emt 0:00:48]} cxd4 {[%emt 0:00:12]} 4. Nxd4 {[%emt 0:00:15]} Nf6 {[%emt 0:00:10]} 5. Nc3 {[%emt 0:00:35]} e5 {[%emt 0:00:16]} 6. Ndb5 {[%emt 0:01:48]} d6 {[%emt 0:00:19]} 7. Bg5 {[%emt 0:03:21]} a6 {[%emt 0:00:14]} 8. Na3 {[%emt 0:00:58]} b5 {[%emt 0:00:17]} 9. Nd5 {[%emt 0:04:17]} Be6 {[%emt 0:03:04]} 10. c4 {[%emt 0:05:49]} bxc4 {[%emt 0:10:54]} 11. Bxc4 {[%emt 0:05:06]} Be7 {[%emt 0:09:45]} 12. Nxe7 {[%emt 0:15:12]} Kxe7 {[%emt 0:12:03]} 13. O-O {[%emt 0:05:42]} h6 {[%emt 0:04:39]} 14. Be3 {[%emt 0:07:50]} Rb8 {[%emt 0:22:05]} 15. Rc1 {[%emt 0:07:57]} Bxc4 {[%emt 0:09:29]} 16. Nxc4 {[%emt 0:01:19]} Na5 {[%emt 0:00:58]} 17. Nxd6 {[%emt 0:04:34]} Nb7 {[%emt 0:06:13]} 18. Nf5+ {[%emt 0:06:43]} Kf8 {[%emt 0:00:23]} 19. Qc2 {[%emt 0:03:07]} g6 {[%emt 0:01:48]} 20. Rfd1 {[%emt 0:03:52]} Qe8 {[%emt 0:04:28]} 21. Nd6 {[%emt 0:05:13]} Qe7 {[%emt 0:00:29]} 22. Nxb7 {[%emt 0:01:34]} Qxb7 {[%emt 0:00:58]} 23. Qc5+ {[%emt 0:02:14]} Kg7 {[%emt 0:00:08]} 24. Qxe5 {[%emt 0:00:23]} Rhe8 {[%emt 0:01:25]} 25. Bxh6+ {[%emt 0:01:17]} Kxh6 {[%emt 0:12:26]} 26. Qxf6 {[%emt 0:13:06]} Qxe4 {[%emt 0:00:00]} 27. h4 {[%emt 0:00:00]} Re6 {[%emt 0:00:00]} 28. Qxf7 {[%emt 0:00:00]} Rxb2 {[%emt 0:00:00]} 29. Qf8+ {[%emt 0:00:00]} 1-0

[Event "34rd NATO Championship 2024"]
[Site "Rhodes"]
[Date "2024.10.24"]
[Round "5.18"]
[White "Cheung, Jan"]
[Black "Jacob, Tobias"]
[Result "0-1"]
[ECO "E04"]
[WhiteElo "2010"]
[BlackElo "2073"]
[Annotator "RC"]
[PlyCount "88"]
[EventDate "2024.09.18"]
[EventType "swiss"]
[EventCountry "GRE"]
[SourceTitle "playchess.com"]
[Source "ChessBase"]
[SourceQuality "1"]
[TimeControl "5400+30"]

1. d4 {[%emt 0:00:15]} d5 {[%emt 0:00:38]} 2. c4 {[%emt 0:07:12]} e6 {[%emt 0:00:04]} 3. Nf3 {[%emt 0:00:05]} Nf6 {[%emt 0:00:07]} 4. g3 {[%emt 0:00:09]} dxc4 {[%emt 0:00:13]} 5. Bg2 {[%emt 0:00:09]} a6 {[%emt 0:00:10]} 6. O-O {[%emt 0:01:40]} Nc6 {[%emt 0:00:09]} 7. e3 {[%emt 0:02:42]} Rb8 {[%emt 0:03:27]} 8. Nfd2 {[%emt 0:04:44]} e5 {[%emt 0:06:00]} 9. Bxc6+ {[%emt 0:11:25]} bxc6 {[%emt 1:24:12]} 10. dxe5 {[%emt 0:00:38]} Ng4 {[%emt 0:00:00]} 11. Nxc4 {[%emt 0:00:48]} Qd5 {[%emt 0:00:00]} 12. b3 {[%emt 0:05:30]} Be6 {[%emt 0:00:00]} 13. Qe2 {[%emt 0:10:27]} Nxe5 {[%emt 0:00:00]} 14. Nxe5 {[%emt 0:00:26]} Qxe5 {[%emt 0:00:00]} 15. Bb2 {[%emt 0:01:03]} Qg5 {[%emt 0:00:00]} 16. Nd2 {[%emt 0:06:06]} h5 {[%emt 0:00:00]} 17. Nf3 {[%emt 0:15:35]} Qg4 {[%emt 0:00:00]} 18. Nd4 {[%emt 0:00:46]} c5 {[%emt 0:00:00]} 19. f3 {[%emt 0:03:02]} Qg6 {[%emt 0:00:00]} 20. Nxe6 {[%emt 0:01:10]} Qxe6 {[%emt 0:00:00]} 21. Rac1 {[%emt 0:01:56]} Bd6 {[%emt 0:00:00]} 22. Rc4 {[%emt 0:03:47]} Rb4 {[%emt 0:00:00]} 23. Rfc1 {[%emt 0:12:44]} h4 {[%emt 0:00:00]} 24. Rxb4 {[%emt 0:01:33]} cxb4 {[%emt 0:00:00]} 25. g4 {[%emt 0:00:29]} O-O {[%emt 0:00:00]} 26. Rc4 {[%emt 0:00:49]} a5 {[%emt 0:00:00]} 27. Re4 {[%emt 0:04:49]} Qd5 {[%emt 0:00:00]} 28. Rd4 {[%emt 0:00:31]} Qa8 {[%emt 0:00:00]} 29. Re4 {[%emt 0:00:47]} a4 {[%emt 0:00:00]} 30. Qc4 {[%emt 0:01:19]} axb3 {[%emt 0:00:00]} 31. Qd4 {[%emt 0:02:08]} f6 {[%emt 0:00:00]} 32. Qc4+ {[%emt 0:00:20]} Kh8 {[%emt 0:00:00]} 33. Qxb3 {[%emt 0:00:43]} Qa5 {[%emt 0:00:10]} 34. Qc4 {[%emt 0:01:07]} h3 {[%emt 0:00:55]} 35. f4 {[%emt 0:00:32]} Qa4 {[%emt 0:00:51]} 36. Qb3 {[%emt 0:00:28]} Qc6 {[%emt 0:00:52]} 37. Qc4 {[%emt 0:00:13]} Qxc4 {[%emt 0:01:28]} 38. Rxc4 {[%emt 0:00:03]} Ra8 {[%emt 0:00:05]} 39. g5 {[%emt 0:00:36]} Rxa2 {[%emt 0:00:46]} 40. Bd4 {[%emt 0:00:38]} fxg5 {[%emt 0:00:46]} 41. Be5 {[%emt 0:00:59]} Bxe5 {[%emt 0:02:36]} 42. fxe5 {[%emt 0:00:07]} b3 {[%emt 0:00:05]} 43. Rb4 {[%emt 0:00:55]} b2 {[%emt 0:00:17]} 44. e6 {[%emt 0:00:28]} Ra1+ {[%emt 0:00:35]} 0-1

[Event "34rd NATO Championship 2024"]
[Site "Rhodes"]
[Date "2024.10.24"]
[Round "5.19"]
[White "Fichtner, Ewald"]
[Black "Tocco, Paolo"]
[Result "1-0"]
[ECO "D00"]
[WhiteElo "2063"]
[BlackElo "2010"]
[Annotator "RC"]
[PlyCount "65"]
[EventDate "2024.09.18"]
[EventType "swiss"]
[EventCountry "GRE"]
[SourceTitle "playchess.com"]
[Source "ChessBase"]
[SourceQuality "1"]
[TimeControl "5400+30"]

1. d4 {[%emt 0:00:03]} Nf6 {[%emt 0:00:07]} 2. Bf4 {[%emt 0:01:16]} d5 {[%emt 0:00:37]} 3. Nc3 {[%emt 0:01:00]} Nc6 {[%emt 0:00:35]} 4. Nb5 {[%emt 0:05:10]} e5 {[%emt 0:00:39]} 5. Bxe5 {[%emt 0:01:58]} Ne4 {[%emt 0:01:46]} 6. c3 {[%emt 0:10:18]} Nxe5 {[%emt 0:10:23]} 7. dxe5 {[%emt 0:00:16]} Bc5 {[%emt 0:01:51]} 8. Nd4 {[%emt 0:02:47]} O-O {[%emt 0:00:23]} 9. e3 {[%emt 0:01:24]} f6 {[%emt 0:00:34]} 10. e6 {[%emt 0:03:38]} f5 {[%emt 0:02:52]} 11. Nge2 {[%emt 0:10:16]} Bd6 {[%emt 0:07:33]} 12. Nf4 {[%emt 0:09:13]} Bxf4 {[%emt 0:04:27]} 13. exf4 {[%emt 0:00:07]} c5 {[%emt 0:00:18]} 14. Nf3 {[%emt 0:04:37]} Bxe6 {[%emt 0:00:08]} 15. Be2 {[%emt 0:01:12]} Qc7 {[%emt 0:06:25]} 16. g3 {[%emt 0:01:29]} Rad8 {[%emt 0:05:01]} 17. O-O {[%emt 0:00:16]} h6 {[%emt 0:04:36]} 18. h4 {[%emt 0:01:17]} a6 {[%emt 0:01:04]} 19. a4 {[%emt 0:03:42]} Qb6 {[%emt 0:01:03]} 20. Qc2 {[%emt 0:01:22]} Rc8 {[%emt 0:09:47]} 21. a5 {[%emt 0:00:40]} Qa7 {[%emt 0:00:14]} 22. Qa4 {[%emt 0:01:49]} Rfe8 {[%emt 0:10:02]} 23. Rad1 {[%emt 0:05:16]} b5 {[%emt 0:07:12]} 24. axb6 {[%emt 0:04:44]} Qxb6 {[%emt 0:00:12]} 25. Qxa6 {[%emt 0:08:29]} Qxb2 {[%emt 0:01:06]} 26. Rb1 {[%emt 0:00:45]} Qxc3 {[%emt 0:01:55]} 27. Ne5 {[%emt 0:00:39]} Ra8 {[%emt 0:11:49]} 28. Qb7 {[%emt 0:02:24]} c4 {[%emt 0:06:41]} 29. Bh5 {[%emt 0:00:40]} Rf8 {[%emt 0:03:03]} 30. Qc6 {[%emt 0:00:10]} Nc5 {[%emt 0:02:33]} 31. Qxc5 {[%emt 0:01:06]} Qa5 {[%emt 0:00:09]} 32. Rb5 {[%emt 0:02:22]} Qd8 {[%emt 0:00:54]} 33. Nc6 {[%emt 0:03:18]} 1-0

[Event "34rd NATO Championship 2024"]
[Site "Rhodes"]
[Date "2024.10.24"]
[Round "5.20"]
[White "Parker, Glen D"]
[Black "Mihailov, Iulian"]
[Result "0-1"]
[ECO "B30"]
[WhiteElo "1979"]
[BlackElo "2048"]
[Annotator "RC"]
[PlyCount "100"]
[EventDate "2024.09.18"]
[EventType "swiss"]
[EventCountry "GRE"]
[SourceTitle "playchess.com"]
[Source "ChessBase"]
[SourceQuality "1"]
[TimeControl "5400+30"]

1. e4 {[%emt 0:00:15]} c5 {[%emt 0:00:05]} 2. Nf3 {[%emt 0:00:16]} Nc6 {[%emt 0:00:01]} 3. b4 {[%emt 0:00:18]} cxb4 {[%emt 0:01:07]} 4. d4 {[%emt 0:00:08]} d5 {[%emt 0:00:24]} 5. exd5 {[%emt 0:00:17]} Qxd5 {[%emt 0:00:18]} 6. c4 {[%emt 0:00:33]} bxc3 {[%emt 0:14:14]} 7. Nxc3 {[%emt 0:00:09]} Qa5 {[%emt 0:00:36]} 8. Rb1 {[%emt 0:26:32]} e6 {[%emt 0:16:31]} 9. Bd2 {[%emt 0:07:36]} Nf6 {[%emt 0:02:52]} 10. Ne4 {[%emt 0:13:26]} Qd5 {[%emt 0:14:43]} 11. Nxf6+ {[%emt 0:06:46]} gxf6 {[%emt 0:00:02]} 12. Qc2 {[%emt 0:04:11]} f5 {[%emt 0:16:51]} 13. Bc4 {[%emt 0:11:21]} Qe4+ {[%emt 0:03:15]} 14. Qxe4 {[%emt 0:00:03]} fxe4 {[%emt 0:00:05]} 15. Ng5 {[%emt 0:00:53]} Nxd4 {[%emt 0:03:48]} 16. Nxe4 {[%emt 0:06:55]} Nc2+ {[%emt 0:12:05]} 17. Ke2 {[%emt 0:00:10]} Na3 {[%emt 0:00:44]} 18. Bc3 {[%emt 0:12:05]} f6 {[%emt 0:00:12]} 19. Bb5+ {[%emt 0:02:39]} Kf7 {[%emt 0:01:14]} 20. Bxf6 {[%emt 0:00:18]} Rg8 {[%emt 0:01:32]} 21. Rb3 {[%emt 0:02:02]} Nxb5 {[%emt 0:00:57]} 22. Rxb5 {[%emt 0:00:01]} Rg4 {[%emt 0:01:59]} 23. f3 {[%emt 0:01:56]} Rxe4+ {[%emt 0:05:34]} 24. fxe4 {[%emt 0:00:01]} Kxf6 {[%emt 0:00:10]} 25. Rf1+ {[%emt 0:00:13]} Ke7 {[%emt 0:02:24]} 26. Rc5 {[%emt 0:00:05]} Bd7 {[%emt 0:01:12]} 27. Rc7 {[%emt 0:00:08]} b6 {[%emt 0:00:26]} 28. Rd1 {[%emt 0:00:34]} Rd8 {[%emt 0:00:11]} 29. Rxa7 {[%emt 0:00:02]} Ke8 {[%emt 0:00:23]} 30. Kf3 {[%emt 0:00:32]} Bc5 {[%emt 0:00:45]} 31. Rc7 {[%emt 0:00:31]} h6 {[%emt 0:00:33]} 32. Kf4 {[%emt 0:00:52]} Bb4 {[%emt 0:00:30]} 33. e5 {[%emt 0:00:11]} Bb5 {[%emt 0:00:35]} 34. Rxd8+ {[%emt 0:00:22]} Kxd8 {[%emt 0:01:12]} 35. Rb7 {[%emt 0:00:23]} Ba5 {[%emt 0:00:00]} 36. g3 {[%emt 0:01:15]} Bc6 {[%emt 0:00:06]} 37. Rh7 {[%emt 0:00:20]} Bd2+ {[%emt 0:00:06]} 38. Kg4 {[%emt 0:00:10]} b5 {[%emt 0:01:12]} 39. a3 {[%emt 0:00:02]} Bc1 {[%emt 0:00:28]} 40. Ra7 {[%emt 0:00:11]} Kc8 {[%emt 0:00:15]} 41. Kh5 {[%emt 0:00:17]} Kb8 {[%emt 0:00:15]} 42. Re7 {[%emt 0:00:33]} Bd5 {[%emt 0:00:34]} 43. g4 {[%emt 0:00:17]} Bxa3 {[%emt 0:00:49]} 44. Re8+ {[%emt 0:00:03]} Kc7 {[%emt 0:00:06]} 45. Kxh6 {[%emt 0:00:05]} b4 {[%emt 0:00:38]} 46. g5 {[%emt 0:01:15]} Bc1 {[%emt 0:00:14]} 47. Re7+ {[%emt 0:00:20]} Kd8 {[%emt 0:00:09]} 48. Rf7 {[%emt 0:00:12]} b3 {[%emt 0:00:47]} 49. Rf8+ {[%emt 0:00:03]} Kc7 {[%emt 0:01:05]} 50. Rf7+ {[%emt 0:00:12]} Kb6 {[%emt 0:00:27]} 0-1

[Event "34rd NATO Championship 2024"]
[Site "Rhodes"]
[Date "2024.10.24"]
[Round "5.21"]
[White "Dekker, Ard"]
[Black "Onley, David E"]
[Result "0-1"]
[ECO "A10"]
[WhiteElo "1963"]
[BlackElo "2040"]
[Annotator "RC"]
[PlyCount "88"]
[EventDate "2024.09.18"]
[EventType "swiss"]
[EventCountry "GRE"]
[SourceTitle "playchess.com"]
[Source "ChessBase"]
[SourceQuality "1"]
[TimeControl "5400+30"]

1. c4 {[%emt 0:00:01]} f5 {[%emt 0:00:13]} 2. g3 {[%emt 0:00:31]} Nf6 {[%emt 0:00:11]} 3. Bg2 {[%emt 0:00:03]} e6 {[%emt 0:00:20]} 4. d3 {[%emt 0:00:11]} Be7 {[%emt 0:00:49]} 5. Nc3 {[%emt 0:00:03]} O-O {[%emt 0:00:32]} 6. e4 {[%emt 0:00:41]} fxe4 {[%emt 0:01:25]} 7. dxe4 {[%emt 0:00:02]} e5 {[%emt 0:02:34]} 8. Nf3 {[%emt 0:05:59]} Bb4 {[%emt 0:08:16]} 9. Bd2 {[%emt 0:04:46]} d6 {[%emt 0:01:55]} 10. O-O {[%emt 0:03:42]} a5 {[%emt 0:03:32]} 11. a3 {[%emt 0:04:55]} Bc5 {[%emt 0:03:36]} 12. Qe2 {[%emt 0:16:33]} Nc6 {[%emt 0:06:55]} 13. Qd3 {[%emt 0:01:59]} h6 {[%emt 0:11:19]} 14. Be3 {[%emt 0:03:07]} Nd7 {[%emt 0:06:36]} 15. Rab1 {[%emt 0:04:55]} a4 {[%emt 0:01:30]} 16. Rbc1 {[%emt 0:12:27]} Bxe3 {[%emt 0:07:08]} 17. Qxe3 {[%emt 0:00:02]} Nc5 {[%emt 0:00:30]} 18. Rfe1 {[%emt 0:06:12]} Be6 {[%emt 0:03:08]} 19. Nd2 {[%emt 0:00:23]} Nd4 {[%emt 0:04:29]} 20. Ne2 {[%emt 0:03:14]} Nxe2+ {[%emt 0:08:45]} 21. Rxe2 {[%emt 0:00:43]} Qd7 {[%emt 0:02:06]} 22. f4 exf4 {[%emt 0:06:27]} 23. gxf4 {[%emt 0:01:17]} Rae8 {[%emt 0:02:02]} 24. Rf2 {[%emt 0:04:23]} b5 {[%emt 0:01:33]} 25. Qd4 {[%emt 0:02:47]} Bh3 {[%emt 0:03:21]} 26. Bxh3 {[%emt 0:00:53]} Qxh3 {[%emt 0:00:08]} 27. Rc3 {[%emt 0:00:07]} Qh5 {[%emt 0:01:36]} 28. Rg3 {[%emt 0:07:38]} Ne6 {[%emt 0:00:49]} 29. Qc3 {[%emt 0:01:46]} Qc5 {[%emt 0:04:07]} 30. f5 {[%emt 0:02:29]} Nd4 {[%emt 0:02:31]} 31. Kf1 {[%emt 0:01:47]} Re5 {[%emt 0:00:50]} 32. Rfg2 {[%emt 0:01:28]} Rf7 {[%emt 0:01:32]} 33. cxb5 {[%emt 0:00:58]} Qxb5+ {[%emt 0:00:17]} 34. Rd3 {[%emt 0:02:09]} Nb3 {[%emt 0:02:28]} 35. Nxb3 {[%emt 0:01:22]} axb3 {[%emt 0:00:05]} 36. Kg1 {[%emt 0:00:17]} Rxe4 {[%emt 0:01:05]} 37. f6 {[%emt 0:00:03]} Rc4 {[%emt 0:01:27]} 38. Qxb3 {[%emt 0:02:35]} Qc5+ {[%emt 0:01:02]} 39. Kf1 {[%emt 0:00:39]} Rxf6+ {[%emt 0:00:43]} 40. Ke2 {[%emt 0:00:49]} Kh7 {[%emt 0:00:36]} 41. Qd1 {[%emt 0:02:34]} Rc2+ {[%emt 0:00:54]} 42. Rd2 {[%emt 0:00:24]} Qe5+ {[%emt 0:00:49]} 43. Kd3 {[%emt 0:00:18]} Qf5+ {[%emt 0:00:18]} 44. Ke3 {[%emt 0:01:10]} Re6+ {[%emt 0:02:01]} 0-1

[Event "34rd NATO Championship 2024"]
[Site "Rhodes"]
[Date "2024.10.24"]
[Round "5.22"]
[White "Giedraitis, Mingaudas"]
[Black "Aagaard, Gert"]
[Result "1-0"]
[ECO "A46"]
[WhiteElo "1950"]
[BlackElo "2029"]
[Annotator "RC"]
[PlyCount "95"]
[EventDate "2024.09.18"]
[EventType "swiss"]
[EventCountry "GRE"]
[SourceTitle "playchess.com"]
[Source "ChessBase"]
[SourceQuality "1"]
[TimeControl "5400+30"]

1. d4 {[%emt 0:03:27]} c5 {[%emt 0:00:18]} 2. c3 {[%emt 0:03:55]} e6 {[%emt 0:01:12]} 3. Nf3 {[%emt 0:00:52]} Nf6 {[%emt 0:00:45]} 4. Bg5 {[%emt 0:02:09]} h6 {[%emt 0:00:54]} 5. Bh4 {[%emt 0:02:06]} Nc6 {[%emt 0:02:59]} 6. e3 {[%emt 0:00:28]} Qb6 {[%emt 0:02:22]} 7. Na3 {[%emt 0:12:20]} d5 {[%emt 0:02:47]} 8. Qb3 {[%emt 0:02:11]} Qa5 {[%emt 0:05:21]} 9. Qb5 {[%emt 0:06:25]} Qxb5 {[%emt 0:17:54]} 10. Nxb5 {[%emt 0:00:11]} Kd7 {[%emt 0:00:24]} 11. Ne5+ {[%emt 0:24:10]} Nxe5 {[%emt 0:00:30]} 12. dxe5 {[%emt 0:00:04]} g5 {[%emt 0:06:57]} 13. exf6 {[%emt 0:05:14]} gxh4 {[%emt 0:00:09]} 14. Rd1 {[%emt 0:01:46]} a6 {[%emt 0:01:45]} 15. Na3 {[%emt 0:00:13]} Kc7 {[%emt 0:10:53]} 16. f3 {[%emt 0:02:09]} b5 {[%emt 0:01:00]} 17. e4 {[%emt 0:09:54]} dxe4 {[%emt 0:11:08]} 18. fxe4 {[%emt 0:00:10]} Bb7 {[%emt 0:01:27]} 19. Bd3 {[%emt 0:08:23]} Rg8 {[%emt 0:02:15]} 20. O-O {[%emt 0:01:09]} h5 {[%emt 0:02:13]} 21. Rf4 {[%emt 0:03:06]} Rg4 {[%emt 0:02:59]} 22. Rxg4 {[%emt 0:03:00]} hxg4 {[%emt 0:00:02]} 23. g3 {[%emt 0:01:57]} hxg3 {[%emt 0:01:05]} 24. hxg3 {[%emt 0:00:02]} Bh6 {[%emt 0:01:14]} 25. Kf2 {[%emt 0:00:49]} Bg5 {[%emt 0:03:43]} 26. Rh1 {[%emt 0:00:47]} Bxf6 {[%emt 0:00:47]} 27. Rh7 {[%emt 0:01:30]} Rf8 {[%emt 0:00:58]} 28. Nb1 {[%emt 0:01:12]} c4 {[%emt 0:00:56]} 29. Bc2 {[%emt 0:00:05]} Kd6 {[%emt 0:02:55]} 30. Nd2 {[%emt 0:02:00]} Bg5 {[%emt 0:04:30]} 31. Nf1 {[%emt 0:00:23]} Ke7 {[%emt 0:03:07]} 32. Ne3 {[%emt 0:02:20]} Rd8 {[%emt 0:00:32]} 33. Ke2 {[%emt 0:01:41]} Rd7 {[%emt 0:00:01]} 34. Rg7 {[%emt 0:00:41]} Bh6 {[%emt 0:02:35]} 35. Rh7 {[%emt 0:00:07]} Bxe3 {[%emt 0:00:54]} 36. Kxe3 {[%emt 0:00:01]} Rd8 {[%emt 0:01:13]} 37. Rh4 {[%emt 0:01:14]} Rg8 {[%emt 0:01:11]} 38. Bd1 {[%emt 0:00:15]} Rd8 {[%emt 0:00:21]} 39. Be2 {[%emt 0:00:30]} Bc8 {[%emt 0:05:05]} 40. Rxg4 {[%emt 0:00:22]} Kf6 {[%emt 0:00:48]} 41. Rf4+ {[%emt 0:00:32]} Ke7 {[%emt 0:00:23]} 42. Rg4 {[%emt 0:00:44]} Rh8 {[%emt 0:00:46]} 43. Rh4 {[%emt 0:00:12]} Rg8 {[%emt 0:00:06]} 44. Rg4 {[%emt 0:00:18]} Rd8 {[%emt 0:01:17]} 45. Rh4 {[%emt 0:00:24]} e5 {[%emt 0:00:23]} 46. Rh6 {[%emt 0:00:54]} Rg8 {[%emt 0:00:36]} 47. Kf2 {[%emt 0:00:23]} Be6 {[%emt 0:00:40]} 48. Rh5 {[%emt 0:00:43]} 1-0